bitfinex-derivatives/quotes_BTCF0:USTF0_20251103
["timestamp","ask_amount","ask_price","bid_price","bid_amount"]
[1762210905884,0.55175318,106280.0,106270.0,0.05788]
[1762210906286,0.55850318,106280.0,106270.0,0.04494]
[1762210906777,0.55850318,106280.0,106270.0,0.001]
[1762210906981,0.79374318,106280.0,106270.0,0.001]
[1762210907181,0.79374318,106280.0,106260.0,0.00310544]
[1762210907182,0.1410831,106270.0,106260.0,0.00310544]
[1762210907383,0.56321024,106270.0,106260.0,0.01652112]
[1762210907786,0.1331297,106240.0,106230.0,0.39471]
[1762210908087,0.1331386,106230.0,106220.0,0.05982852]
[1762210908287,0.13242357,106230.0,106220.0,0.51479592]
[1762210908586,0.20706877,106260.0,106250.0,0.04394]
[1762210908889,0.64540234,106260.0,106250.0,0.1507509]
[1762210909184,0.22655877,106260.0,106250.0,0.05661]
[1762210909375,0.55203877,106260.0,106250.0,0.05661]
[1762210909578,0.55211945,106260.0,106250.0,0.05661]
[1762210909778,0.22663945,106260.0,106250.0,0.1507508]
[1762210909980,0.55207945,106260.0,106250.0,0.1507508]
[1762210910380,0.55211945,106260.0,106250.0,0.1507508]
[1762210910780,0.64956302,106260.0,106250.0,0.05761]
[1762210912276,0.64956302,106260.0,106250.0,0.02224]
[1762210912481,0.86963225,106260.0,106250.0,0.001]
[1762210912679,0.63435225,106260.0,106250.0,0.001]
[1762210915190,0.86963225,106260.0,106250.0,0.001]
[1762210917281,0.87893998,106260.0,106250.0,0.001]
[1762210917891,0.87937998,106260.0,106250.0,0.04494]
[1762210918093,0.87937998,106260.0,106250.0,0.05761]
[1762210918288,0.87937998,106260.0,106250.0,0.001]
[1762210918482,0.87933998,106260.0,106250.0,0.001]
[1762210918689,0.64405998,106260.0,106250.0,0.001]
[1762210918886,0.31817998,106260.0,106250.0,0.001]
[1762210919185,0.64405998,106260.0,106250.0,0.02224]
[1762210919384,0.64405998,106260.0,106250.0,0.04494]
[1762210919586,0.87933998,106260.0,106250.0,0.02224]
[1762210919888,0.87929998,106260.0,106250.0,0.01441304]
[1762210921591,0.64405998,106260.0,106250.0,0.05835304]
[1762210921793,0.64405998,106260.0,106250.0,0.07102304]
[1762210922090,0.64405998,106260.0,106250.0,0.01441304]
[1762210922298,0.64405998,106260.0,106250.0,0.03565304]
[1762210922992,0.64401998,106260.0,106250.0,0.01441304]
[1762210923499,0.64405998,106260.0,106250.0,0.01441304]
[1762210923990,0.64401998,106260.0,106250.0,0.01441304]
[1762210925397,0.87929998,106260.0,106250.0,0.01441304]
[1762210927499,0.90290784,106260.0,106250.0,0.01441304]
[1762210929098,0.01014,106240.0,106230.0,0.05661]
[1762210929300,0.50761637,106240.0,106230.0,0.05661]
[1762210929497,0.60176547,106240.0,106230.0,0.05661]
[1762210930205,0.62545563,106240.0,106230.0,0.05661]
[1762210930403,0.59458101,106240.0,106230.0,0.05661]
[1762210931207,0.61828865,106240.0,106230.0,0.05661]
[1762210931506,0.094158,106230.0,106220.0,0.05982852]
[1762210931698,0.26583437,106230.0,106220.0,0.05982852]
[1762210932099,0.2895414,106230.0,106220.0,0.05982852]
[1762210933301,0.2935414,106230.0,106220.0,0.06082852]
[1762210934102,0.2935414,106230.0,106220.0,0.00421852]
[1762210934402,0.33455346,106230.0,106220.0,0.00421852]
[1762210934606,0.36832178,106230.0,106220.0,0.00421852]
[1762210935311,0.0941669,106220.0,106210.0,0.05651]
[1762210935507,0.46887747,106220.0,106210.0,0.03429]
[1762210935712,0.0941758,106210.0,106200.0,0.05651]
[1762210935912,0.2115889,106210.0,106200.0,0.05651]
[1762210936108,0.21168234,106210.0,106200.0,0.05651]
[1762210936810,0.21268234,106210.0,106200.0,0.05651]
[1762210937304,0.38346589,106210.0,106200.0,0.05651]
[1762210937507,0.0941935,106190.0,106180.0,0.03739778]
[1762210937805,0.61604343,106190.0,106180.0,0.05961778]
[1762210938406,0.1489723,106180.0,106170.0,0.05674]
[1762210938606,0.24267837,106180.0,106170.0,0.05674]
[1762210938802,0.33638444,106180.0,106170.0,0.04384]
[1762210939210,0.24267837,106180.0,106170.0,0.04384]
[1762210939512,0.24267837,106180.0,106170.0,0.05674]
[1762210939712,0.2508028,106180.0,106170.0,0.05674]
[1762210940312,0.33201009,106180.0,106170.0,0.05774]
[1762210940901,0.32950009,106180.0,106170.0,0.04484]
[1762210941108,0.50726837,106180.0,106170.0,0.05774]
[1762210941310,0.35318173,106180.0,106170.0,0.05774]
[1762210941516,0.34458173,106180.0,106170.0,0.05774]
[1762210941909,0.32090009,106180.0,106170.0,0.1519512]
[1762210942109,0.32090009,106180.0,106170.0,0.05774]
[1762210942412,0.31177566,106180.0,106170.0,0.151951]
[1762210942615,0.1398623,106180.0,106170.0,0.151951]
[1762210943407,0.31177566,106180.0,106170.0,0.151951]
[1762210943608,0.1398623,106180.0,106170.0,0.151951]
[1762210946406,0.25704467,106180.0,106170.0,0.151951]
[1762210950215,0.25704467,106180.0,106170.0,0.477791]
[1762210953509,0.25704467,106180.0,106170.0,0.38358]
[1762210953710,0.27036467,106180.0,106170.0,0.04484]
[1762210954815,0.25704467,106180.0,106170.0,0.0588]
[1762210955114,0.27052467,106180.0,106170.0,0.04484]
[1762210955312,0.27052467,106180.0,106170.0,0.0588]
[1762210956819,0.27052467,106180.0,106170.0,0.02262]
[1762210957006,0.27052467,106180.0,106170.0,0.04564]
[1762210960322,0.1512094,106160.0,106150.0,0.05828111]
[1762210960612,0.23073622,106160.0,106150.0,0.07173933]
[1762210960813,0.25285622,106160.0,106150.0,0.07173933]
[1762210961014,0.04384,106160.0,106150.0,0.16596803]
[1762210961319,0.02212,106160.0,106150.0,0.15250981]
[1762210961519,0.04484,106160.0,106150.0,0.15250981]
[1762210962413,0.32660252,106160.0,106150.0,0.05828111]
[1762210962614,0.35025096,106160.0,106150.0,0.38432111]
[1762210964119,0.16270824,106160.0,106150.0,0.38432111]
[1762210964317,0.35025096,106160.0,106150.0,0.38432111]
[1762210964716,0.32660252,106160.0,106150.0,0.38432111]
[1762210966125,0.3266975,106160.0,106150.0,0.38432111]
[1762210967322,0.35037631,106160.0,106150.0,0.38432111]
[1762210967819,0.44414767,106160.0,106150.0,0.36867111]
[1762210968021,0.44414767,106160.0,106150.0,0.00010111]
[1762210968522,0.44414767,106160.0,106150.0,0.02227111]
[1762210968723,0.44414767,106160.0,106150.0,0.00010111]
[1762210968917,0.44414767,106160.0,106150.0,0.02227111]
[1762210969116,1.00562767,106160.0,106150.0,0.00010111]
[1762210969522,1.00562767,106160.0,106140.0,0.04660895]
[1762210969523,0.1394388,106150.0,106140.0,0.04660895]
[1762210969719,0.35066033,106150.0,106140.0,0.04660895]
[1762210970618,0.35566033,106150.0,106140.0,0.06004895]
[1762210971025,0.36176033,106150.0,106140.0,0.00310895]
[1762210971224,0.33808152,106150.0,106140.0,0.00310895]
[1762210971420,0.36173227,106150.0,106140.0,0.00310895]
[1762210971622,0.45550363,106150.0,106140.0,0.00310895]
[1762210971827,0.45550363,106150.0,106140.0,5e-08]
[1762210972030,0.1394566,106130.0,106120.0,0.05746]
[1762210972328,0.24403615,106130.0,106120.0,0.0435]
[1762210972923,0.26767166,106130.0,106120.0,0.02217]
[1762210973119,0.1394653,106120.0,106110.0,0.05694]
[1762210973320,0.32700802,106120.0,106110.0,0.05694]
[1762210974630,0.32900802,106120.0,106110.0,0.05694]
[1762210975629,0.33854905,106120.0,106110.0,0.05694]
[1762210976322,0.34528905,106120.0,106110.0,0.05694]
[1762210976826,0.34528905,106120.0,106110.0,0.02217]
[1762210977026,0.67144905,106120.0,106110.0,0.02217]
[1762210977229,0.1394742,106110.0,106100.0,0.38617013]
[1762210977420,0.32701692,106110.0,106100.0,0.38617013]
[1762210978022,0.32701692,106110.0,106100.0,0.04661013]
[1762210978218,0.33320568,106110.0,106100.0,0.04661013]
[1762210979432,0.33420568,106110.0,106100.0,0.04661013]
[1762210979827,0.33820568,106110.0,106100.0,0.04661013]
[1762210981236,0.43197704,106110.0,106100.0,0.00311013]
[1762210981436,0.33820568,106110.0,106100.0,0.00311013]
[1762210981634,0.33210568,106110.0,106100.0,0.06005013]
[1762210982339,0.35585171,106110.0,106100.0,0.06005013]
[1762210982529,0.33820568,106110.0,106100.0,0.04661013]
[1762210983334,0.33820568,106110.0,106100.0,0.06005013]
[1762210983525,0.14407012,106110.0,106100.0,0.15432323]
[1762210983730,0.09886012,106110.0,106100.0,0.48052323]
[1762210984131,0.00508876,106110.0,106100.0,0.80989459]
[1762210984636,0.00508876,106110.0,106100.0,0.90366595]
[1762210985138,1.59377136,106130.0,106120.0,0.1511953]
[1762210985339,1.59377136,106130.0,106120.0,0.57132666]
[1762210985638,0.13898136,106140.0,106130.0,0.1511864]
[1762210986044,0.13905594,106140.0,106130.0,0.1511864]
[1762210986237,0.13905594,106140.0,106130.0,0.24495776]
[1762210986434,0.04528458,106140.0,106130.0,0.1511864]
[1762210986940,0.00307458,106140.0,106130.0,0.1511864]
[1762210987239,0.02501458,106140.0,106130.0,0.3867464]
[1762210987437,0.00307458,106140.0,106130.0,0.3867464]
[1762210991638,0.09731218,106140.0,106130.0,0.1511864]
[1762210991839,0.09731218,106140.0,106130.0,0.7130264]
[1762210992139,0.25977081,106140.0,106130.0,0.38322]
[1762210996548,0.27095081,106140.0,106130.0,0.34845]
[1762210996743,0.0942553,106120.0,106110.0,0.0568]
[1762210997051,0.25584393,106120.0,106110.0,0.0568]
[1762210997549,0.26654393,106120.0,106110.0,0.04336]
[1762210997756,0.38379256,106120.0,106110.0,0.04336]
[1762210998338,0.38379256,106120.0,106100.0,0.34303013]
[1762210998339,0.1386043,106110.0,106100.0,0.38639013]
[1762210998540,0.25594844,106110.0,106100.0,0.38639013]
[1762210998750,0.25594844,106110.0,106100.0,0.05991013]
[1762210999659,0.13869981,106110.0,106100.0,0.15418333]
[1762211002457,0.25594844,106110.0,106100.0,0.15418333]
[1762211002659,0.25594844,106110.0,106100.0,0.05991013]
[1762211004663,0.09435981,106110.0,106100.0,0.15418353]
[1762211005060,0.11589981,106110.0,106100.0,0.15418353]
[1762211005261,0.13869981,106110.0,106100.0,0.15418353]
[1762211005663,0.25594844,106110.0,106100.0,0.05991013]
[1762211006064,0.26664844,106110.0,106100.0,0.00311013]
[1762211006362,0.3215587,106110.0,106100.0,0.00311013]
[1762211006770,0.34538156,106110.0,106100.0,0.00311013]
[1762211007066,0.34538156,106110.0,106100.0,0.02470013]
[1762211007268,0.3215587,106110.0,106100.0,0.02470013]
[1762211007860,0.3386775,106110.0,106100.0,0.06117013]
[1762211008174,0.34814739,106110.0,106100.0,0.06117013]
[1762211008469,0.32432859,106110.0,106100.0,0.06117013]
[1762211008659,0.33502859,106110.0,106100.0,0.04747013]
[1762211010161,0.33502859,106110.0,106100.0,0.02570013]
[1762211010370,0.33502859,106110.0,106100.0,0.00411013]
[1762211011965,0.32432859,106110.0,106100.0,0.04801013]
[1762211012165,0.32432859,106110.0,106100.0,0.06123013]
[1762211012666,0.33502859,106110.0,106100.0,0.04801013]
[1762211012870,0.33502859,106110.0,106100.0,0.02583013]
[1762211013371,0.35838944,106110.0,106100.0,0.06123013]
[1762211013572,0.1521697,106110.0,106100.0,0.06123013]
[1762211014363,0.1521697,106110.0,106100.0,0.15550343]
[1762211014667,0.32432859,106110.0,106100.0,0.15550343]
[1762211014867,0.32432859,106110.0,106100.0,0.06123013]
[1762211015768,0.33502859,106110.0,106100.0,0.04801013]
[1762211015965,0.33502859,106110.0,106100.0,0.02583013]
[1762211016273,0.33502859,106110.0,106100.0,0.00411013]
[1762211018463,0.1628697,106110.0,106100.0,0.02583013]
[1762211018664,0.33502859,106110.0,106100.0,0.00411013]
[1762211019370,0.35840183,106110.0,106100.0,0.00411013]
[1762211021063,0.33502859,106110.0,106100.0,0.00411013]
[1762211021261,0.35842868,106110.0,106100.0,0.00411013]
[1762211023375,0.35844515,106110.0,106100.0,0.00411013]
[1762211024674,0.35844515,106110.0,106100.0,0.02583013]
[1762211024870,0.35844515,106110.0,106100.0,0.04721013]
[1762211025281,0.17558626,106110.0,106100.0,0.06045013]
[1762211025576,0.35844515,106110.0,106100.0,0.04721013]
[1762211025776,0.35844515,106110.0,106100.0,0.06045013]
[1762211025777,0.34774515,106110.0,106100.0,0.06045013]
[1762211026383,0.34777766,106110.0,106100.0,0.06045013]
[1762211026872,0.35847766,106110.0,106100.0,0.04721013]
[1762211029980,0.35847766,106110.0,106100.0,0.02583013]
[1762211030378,0.37412349,106110.0,106100.0,0.04721013]
[1762211030878,0.37412349,106110.0,106100.0,0.02583013]
[1762211031075,0.37412349,106110.0,106100.0,0.04721013]
[1762211031673,0.37412349,106110.0,106100.0,0.00411013]
[1762211033083,0.60972349,106110.0,106100.0,0.00411013]
[1762211034084,0.63489845,106110.0,106100.0,0.00411013]
[1762211035577,0.145434,106100.0,106090.0,0.00010982]
[1762211035777,0.58930543,106100.0,106090.0,0.00010982]
[1762211036791,0.66527903,106100.0,106090.0,0.00010982]
[1762211036978,0.66827903,106100.0,106090.0,0.00110982]
[1762211038285,0.56730667,106100.0,106090.0,0.05899982]
[1762211038586,0.25871543,106100.0,106090.0,0.05899982]
[1762211038985,0.23526636,106100.0,106090.0,0.05899982]
[1762211039287,0.23526636,106100.0,106090.0,0.15328272]
[1762211039496,0.23526636,106100.0,106090.0,0.05899982]
[1762211040383,0.23526636,106100.0,106090.0,0.15328262]
[1762211041689,0.141364,106100.0,106090.0,0.15328262]
[1762211041887,0.23526636,106100.0,106090.0,0.15328262]
[1762211042382,0.003,106100.0,106090.0,0.15328262]
[1762211042584,9.551e-05,106110.0,106100.0,0.1521637]
[1762211042781,0.02136,106130.0,106120.0,0.1521459]
[1762211043089,0.18337724,106140.0,106130.0,0.1521371]
[1762211043289,0.08947488,106140.0,106130.0,0.1521371]
[1762211043486,0.05342537,106140.0,106130.0,0.1521371]
[1762211043689,0.14778401,106140.0,106130.0,0.1521371]
[1762211044083,0.24168637,106140.0,106130.0,0.1521371]
[1762211044291,0.31979706,106140.0,106130.0,0.1521371]
[1762211044494,0.13844864,106140.0,106130.0,0.1521371]
[1762211045484,0.09435864,106140.0,106130.0,0.1521371]
[1762211045683,0.14144864,106140.0,106130.0,0.1521371]
[1762211045891,0.04721044,106140.0,106130.0,0.1521371]
[1762211046485,0.11871864,106140.0,106130.0,0.1521371]
[1762211046685,0.09735864,106140.0,106130.0,0.1521371]
[1762211046881,0.00312044,106140.0,106130.0,0.1521371]
[1762211047988,0.1155835,106160.0,106150.0,0.02327]
[1762211048186,0.02136,106160.0,106150.0,0.1521194]
[1762211048386,0.1383105,106160.0,106150.0,0.05789]
[1762211048593,1.6383105,106160.0,106150.0,0.1521194]
[1762211049094,1.81041847,106160.0,106150.0,0.1521194]
[1762211049290,1.63840542,106160.0,106150.0,0.1521194]
[1762211049883,1.63840542,106160.0,106150.0,0.05789]
[1762211049884,1.64040542,106160.0,106150.0,0.05789]
[1762211050084,1.81241847,106160.0,106150.0,0.05789]
[1762211050487,1.81241847,106160.0,106150.0,0.04465]
[1762211050993,1.81241847,106160.0,106150.0,0.05789]
[1762211051192,1.82227847,106160.0,106150.0,0.04465]
[1762211053789,2.54387847,106160.0,106150.0,0.04465]
[1762211054591,0.1173498,106150.0,106140.0,0.0361]
[1762211054789,0.67279285,106150.0,106140.0,0.05781]
[1762211057100,0.5007798,106150.0,106140.0,0.1520488]
[1762211057295,0.04575,106150.0,106140.0,0.5128488]
[1762211057492,0.5007804,106150.0,106140.0,0.05781]
[1762211057795,0.67279345,106150.0,106140.0,0.05781]
[1762211058497,0.67579345,106150.0,106140.0,0.05781]
[1762211058688,0.1014179,106130.0,106120.0,0.0583]
[1762211058892,0.1400068,106120.0,106110.0,0.05781]
[1762211059090,2.17281985,106120.0,106110.0,0.05781]
[1762211059591,2.17281985,106120.0,106110.0,0.04457]
[1762211059787,0.1400157,106110.0,106100.0,0.0583]
[1762211059984,0.67282875,106110.0,106100.0,0.0583]
[1762211060184,0.67290914,106110.0,106100.0,0.0583]
[1762211061996,0.99978914,106110.0,106100.0,0.0583]
[1762211062398,1.00924915,106110.0,106100.0,0.0583]
[1762211064194,1.01994915,106110.0,106100.0,0.0583]
[1762211065995,1.86088039,106110.0,106100.0,0.1525752]
[1762211066191,8.039e-05,106110.0,106100.0,1.0758552]
[1762211066502,0.02312,106130.0,106120.0,0.1525575]
[1762211066799,0.40655,106140.0,106130.0,0.1525486]
[1762211067293,0.41613696,106150.0,106140.0,0.1525397]
[1762211067494,0.04575,106150.0,106140.0,0.5133397]
[1762211067692,0.1399808,106150.0,106140.0,0.1525397]
[1762211067889,0.1399808,106150.0,106140.0,0.0583]
[1762211068091,0.1399808,106150.0,106140.0,0.1525397]
[1762211068394,0.25722859,106150.0,106140.0,0.1525397]
[1762211068800,0.1409808,106150.0,106140.0,0.5133397]
[1762211069199,0.1409808,106150.0,106140.0,0.8404197]
[1762211069899,0.001,106150.0,106140.0,0.8404197]
[1762211070293,0.02105,106150.0,106140.0,0.8404197]
[1762211070594,0.02205,106150.0,106140.0,0.8404197]
[1762211070797,0.001,106150.0,106140.0,0.8404197]
[1762211073899,0.0952309,106150.0,106140.0,0.8404197]
[1762211074601,0.001,106150.0,106140.0,0.8404197]
[1762211075102,0.0952308,106150.0,106140.0,0.8404197]
[1762211076302,0.25646859,106150.0,106140.0,0.8404197]
[1762211076702,0.1392208,106150.0,106140.0,0.8404197]
[1762211076899,0.61726859,106150.0,106140.0,0.0583]
[1762211077493,0.62400859,106150.0,106140.0,0.02286]
[1762211077704,0.61726859,106150.0,106140.0,0.05836]
[1762211078503,0.62400859,106150.0,106140.0,0.02286]
[1762211079292,0.1382298,106140.0,106130.0,0.38531]
[1762211079497,0.61627759,106140.0,106130.0,0.38531]
[1762211080103,0.13706109,106130.0,106120.0,0.1525615]
[1762211080403,0.25430888,106130.0,106120.0,0.4794876]
[1762211080904,0.61510888,106130.0,106120.0,0.38523]
[1762211081107,0.61510888,106130.0,106120.0,0.38623]
[1762211081304,0.62463297,106130.0,106120.0,0.38623]
[1762211082609,0.62463297,106130.0,106120.0,0.38523]
[1762211082810,0.62663297,106130.0,106120.0,0.38523]
[1762211083106,0.62663297,106130.0,106120.0,0.4794875]
[1762211084099,0.62663297,106130.0,106120.0,0.38523]
[1762211084606,0.63380297,106130.0,106120.0,0.38523]
[1762211084904,0.50938518,106130.0,106120.0,0.38523]
[1762211085109,0.62663297,106130.0,106120.0,0.38523]
[1762211086010,0.63380297,106130.0,106120.0,0.3715]
[1762211086710,0.63380297,106130.0,106120.0,0.38537]
[1762211088109,0.63380297,106130.0,106120.0,0.05845]
[1762211089602,0.50938518,106130.0,106120.0,0.1527075]
[1762211089803,0.002,106130.0,106120.0,0.5135075]
[1762211090105,0.1387634,106150.0,106140.0,0.1523698]
[1762211090308,0.1387634,106150.0,106140.0,0.8401298]
[1762211091403,0.1397634,106150.0,106140.0,0.4793298]
[1762211091803,0.1397634,106150.0,106140.0,0.8401298]
[1762211092308,0.1397609,106150.0,106140.0,0.8401298]
[1762211092909,0.1397609,106150.0,106140.0,0.41893]
[1762211093105,0.0952309,106150.0,106140.0,0.8402898]
[1762211095412,0.0952309,106150.0,106140.0,0.4794898]
[1762211096123,0.1397609,106150.0,106140.0,0.4794898]
[1762211097823,0.1397609,106150.0,106140.0,0.38525]
[1762211098525,0.1397609,106150.0,106140.0,0.4794898]
[1762211102214,0.25700869,106150.0,106140.0,0.4794898]
[1762211103124,0.1397609,106150.0,106140.0,0.4794898]
[1762211105524,0.25700869,106150.0,106140.0,0.4794898]
[1762211106115,0.1397609,106150.0,106140.0,0.4794898]
[1762211107620,0.1397609,106150.0,106140.0,0.38525]
[1762211107930,0.1397609,106150.0,106140.0,0.4794898]
[1762211108322,0.25700869,106150.0,106140.0,0.4794898]
[1762211109430,0.1397609,106150.0,106140.0,0.4794898]
[1762211109630,0.25700869,106150.0,106140.0,0.4794898]
[1762211110426,0.23356526,106150.0,106140.0,0.38525]
[1762211110829,0.23356526,106150.0,106140.0,0.4794898]
[1762211111330,0.21162526,106150.0,106140.0,0.4794898]
[1762211111832,0.23356526,106150.0,106140.0,0.4794898]
[1762211112330,0.18903526,106150.0,106140.0,0.8402898]
[1762211112535,0.18903526,106150.0,106140.0,0.4794898]
[1762211112727,0.21162526,106150.0,106140.0,0.4794898]
[1762211112934,0.18903526,106150.0,106140.0,0.8402898]
[1762211113230,0.18903526,106150.0,106140.0,0.4794898]
[1762211114033,0.18903526,106150.0,106140.0,0.8402898]
[1762211114230,0.23356526,106150.0,106140.0,0.4794898]
[1762211114829,0.23356526,106150.0,106140.0,0.8402898]
[1762211115539,0.0952309,106150.0,106140.0,0.93409416]
[1762211115836,0.09480436,106150.0,106140.0,0.93409416]
[1762211116029,0.18903526,106150.0,106140.0,0.93409416]
[1762211116733,0.09480436,106150.0,106140.0,0.93409416]
[1762211117237,0.09480436,106150.0,106140.0,1.00171521]
[1762211117437,0.18903526,106150.0,106140.0,0.90791085]
[1762211117640,0.18903526,106150.0,106140.0,1.00171521]
[1762211118031,0.001,106150.0,106140.0,1.00171521]
[1762211118234,0.09480436,106150.0,106140.0,1.00171521]
[1762211119541,0.001,106150.0,106140.0,1.00171521]
[1762211119735,0.001,106150.0,106140.0,1.02789852]
[1762211120035,0.001,106150.0,106140.0,0.93409416]
[1762211120334,0.14021436,106150.0,106140.0,0.93409416]
[1762211120538,0.04641,106150.0,106140.0,0.93409416]
[1762211120726,0.14021436,106150.0,106140.0,0.93409416]
[1762211120930,0.09480436,106150.0,106140.0,0.93409416]
[1762211123234,0.001,106150.0,106140.0,1.01869988]
[1762211123435,0.001,106150.0,106140.0,0.93409416]
[1762211124335,0.001,106150.0,106140.0,1.01869988]
[1762211126643,0.001,106150.0,106140.0,1.34802424]
[1762211126842,0.001,106150.0,106140.0,1.16041552]
[1762211127043,0.001,106150.0,106140.0,1.34802424]
[1762211127248,0.09380436,106160.0,106150.0,0.152921]
[1762211127249,0.11607436,106160.0,106150.0,0.152921]
[1762211127546,0.02227,106160.0,106150.0,0.69228739]
[1762211127745,0.13921436,106160.0,106150.0,0.69228739]
[1762211128244,0.02227,106160.0,106150.0,0.60752536]
[1762211128444,0.02227,106160.0,106150.0,0.513721]
[1762211129047,1.70022579,106170.0,106160.0,0.1517521]
[1762211129238,1.70022579,106170.0,106160.0,0.54574301]
[1762211129438,1.60645585,106170.0,106160.0,0.54574301]
[1762211129638,1.70022579,106170.0,106160.0,0.54574301]
[1762211130147,1.70122579,106170.0,106160.0,0.54574301]
[1762211130350,1.60745585,106170.0,106160.0,0.54574301]
[1762211130650,1.69198954,106170.0,106160.0,0.54574301]
[1762211130847,1.69198954,106170.0,106160.0,0.4779521]
[1762211131043,1.69198954,106170.0,106160.0,0.90654301]
[1762211131644,1.69198954,106170.0,106160.0,0.8387521]
[1762211132044,1.5982196,106170.0,106160.0,0.8387521]
[1762211132250,1.69198954,106170.0,106160.0,0.8387521]
[1762211133049,1.59776994,106170.0,106160.0,0.8387521]
[1762211133451,1.59776994,106170.0,106160.0,0.90654301]
[1762211133750,1.59776994,106170.0,106160.0,0.8387521]
[1762211134251,1.504,106170.0,106160.0,0.8387521]
[1762211134456,1.59776994,106170.0,106160.0,0.8387521]
[1762211134748,1.504,106170.0,106160.0,0.8387521]
[1762211134950,1.504,106170.0,106160.0,0.90654301]
[1762211135744,0.004,106170.0,106160.0,0.90654301]
[1762211136343,0.003,106170.0,106160.0,0.90654301]
[1762211136952,0.003,106170.0,106160.0,1.00031295]
[1762211137452,0.003,106170.0,106160.0,0.90654301]
[1762211137945,0.003,106170.0,106160.0,1.01728407]
[1762211138346,0.3608,106180.0,106170.0,0.1517433]
[1762211138545,0.3608,106180.0,106170.0,0.21946393]
[1762211138946,0.3608,106180.0,106170.0,0.22894728]
[1762211139148,0.3608,106180.0,106170.0,0.1517433]
[1762211139553,0.3618,106180.0,106170.0,0.1517433]
[1762211140554,0.38506,106180.0,106170.0,0.1517433]
[1762211140750,0.3618,106180.0,106170.0,0.1517433]
[1762211141552,0.3618,106180.0,106170.0,0.21946393]
[1762211144255,0.3618,106180.0,106170.0,0.1517433]
[1762211144449,0.001,106180.0,106170.0,0.5125433]
[1762211144649,0.001,106180.0,106170.0,0.67403387]
[1762211150959,0.001,106180.0,106170.0,0.90951387]
[1762211152458,0.60270706,106200.0,106190.0,0.1515454]
[1762211152665,0.24190706,106200.0,106190.0,0.4775854]
[1762211152964,0.24190706,106200.0,106190.0,0.8383854]
[1762211153762,0.23356224,106200.0,106190.0,0.8383854]
[1762211156557,0.23356224,106200.0,106190.0,0.74419]
[1762211156756,0.23356224,106200.0,106190.0,0.8383854]
[1762211157263,0.59436224,106200.0,106190.0,0.38339]
[1762211157659,0.59436224,106200.0,106190.0,0.4775854]
[1762211157963,0.23356224,106200.0,106190.0,0.4775854]
[1762211158164,0.23256224,106200.0,106190.0,0.4775854]
[1762211159358,0.23256224,106200.0,106190.0,0.41815]
[1762211159664,0.1387923,106200.0,106190.0,0.8383454]
[1762211160265,0.0446,106200.0,106190.0,0.8383454]
[1762211160568,2.35450946,106210.0,106200.0,0.1520865]
[1762211160769,1.70046129,106210.0,106200.0,0.1520865]
[1762211160954,2.06126129,106210.0,106200.0,0.0579]
[1762211161363,1.70046129,106210.0,106200.0,0.1520865]
[1762211161869,1.70146129,106210.0,106200.0,0.1520865]
[1762211164371,1.70146129,106210.0,106200.0,0.0579]
[1762211164566,1.70146129,106210.0,106200.0,0.24585624]
[1762211164567,0.0981774,106210.0,106200.0,0.24585624]
[1762211164870,0.0473,106210.0,106200.0,0.1520863]
[1762211165468,0.004,106210.0,106200.0,0.60665624]
[1762211165668,0.004,106210.0,106200.0,0.67427817]
[1762211165870,0.004,106210.0,106200.0,0.90967817]
[1762211166264,0.41328835,106230.0,106220.0,0.1520686]
[1762211166560,0.4041,106230.0,106220.0,0.4781086]
[1762211166969,0.4041,106230.0,106220.0,0.57187854]
[1762211167571,0.4041,106230.0,106220.0,0.4781086]
[1762211168073,0.0433,106230.0,106220.0,0.8389086]
[1762211168464,0.0433,106230.0,106220.0,0.1520686]
[1762211168465,0.1394597,106230.0,106220.0,0.1520686]
[1762211168670,0.1394597,106230.0,106220.0,0.8388686]
[1762211168671,0.0453,106230.0,106220.0,0.8388686]
[1762211168869,0.0453,106230.0,106220.0,0.4780686]
[1762211169069,0.0453,106230.0,106220.0,0.8388686]
[1762211172572,0.002,106230.0,106220.0,0.8388686]
[1762211173065,0.02396,106230.0,106220.0,0.8388686]
[1762211173465,0.02396,106230.0,106220.0,0.8481614]
[1762211173665,0.02396,106230.0,106220.0,0.8388686]
[1762211173865,0.0961597,106230.0,106220.0,0.8388686]
[1762211174270,0.002,106230.0,106220.0,0.8388686]
[1762211174473,0.04566,106230.0,106220.0,0.93263854]
[1762211174875,0.02396,106230.0,106220.0,0.93263854]
[1762211175070,0.002,106230.0,106220.0,0.93263854]
[1762211175875,0.002,106230.0,106220.0,0.8388686]
[1762211178776,0.002,106230.0,106220.0,0.93263854]
[1762211181775,0.00261,106240.0,106230.0,0.05676]
[1762211181977,0.02506,106240.0,106230.0,0.5117197]
[1762211182171,0.00261,106240.0,106230.0,0.5117197]
[1762211183682,0.00261,106240.0,106230.0,0.60548964]
[1762211183976,0.00261,106240.0,106230.0,0.60648964]
[1762211186578,0.23468084,106240.0,106230.0,0.3836]
[1762211186880,0.23468084,106240.0,106230.0,0.05776]
[1762211187076,0.59548084,106240.0,106230.0,0.3836]
[1762211187885,0.59548084,106240.0,106230.0,0.4777598]
[1762211188483,0.68901068,106240.0,106230.0,0.4777598]
[1762211189384,0.32821068,106240.0,106230.0,0.4777598]
[1762211189980,0.23456079,106240.0,106230.0,0.4777598]
[1762211190780,0.32821068,106240.0,106230.0,0.4777598]
[1762211191383,0.69918068,106240.0,106230.0,0.3836]
[1762211191786,0.69918068,106240.0,106230.0,0.37008]
[1762211193394,0.72228367,106240.0,106230.0,0.36908]
[1762211193594,0.72228372,106240.0,106230.0,0.36908]
[1762211194195,0.69918068,106240.0,106230.0,0.36908]
[1762211194394,0.72229384,106240.0,106230.0,0.36908]
[1762211195096,0.1453098,106230.0,106220.0,0.04287]
[1762211195293,0.69340958,106230.0,106220.0,0.04287]
[1762211196095,0.1385786,106220.0,106210.0,0.38216]
[1762211196400,0.69853838,106220.0,106210.0,0.05632]
[1762211196698,0.69853838,106220.0,106210.0,0.04287]
[1762211196996,0.5112386,106220.0,106210.0,0.05552]
[1762211197198,0.69853838,106220.0,106210.0,0.04287]
[1762211202702,0.70770677,106220.0,106210.0,0.04287]
[1762211203206,0.1385875,106210.0,106200.0,0.3822]
[1762211203401,0.59303739,106210.0,106200.0,0.3822]
[1762211204006,0.60373739,106210.0,106200.0,0.36875]
[1762211204408,0.60373739,106210.0,106200.0,0.36975]
[1762211204701,0.69738728,106210.0,106200.0,0.32688]
[1762211205009,0.69738728,106210.0,106200.0,0.37137]
[1762211205310,0.59303739,106210.0,106200.0,0.38404]
[1762211205503,0.3608,106220.0,106210.0,0.1068475]
[1762211205803,0.5002239,106230.0,106220.0,0.05716]
[1762211206010,0.23307379,106230.0,106220.0,0.05716]
[1762211206409,0.13890989,106230.0,106220.0,0.4774487]